bitfinex/quotes_ETHUSD_20241231
["timestamp","ask_amount","ask_price","bid_price","bid_amount"]
[1735634162636,2.94541,3395.2,3395.0,0.03038055]
[1735634162873,3.0,3395.1,3394.5,12.12606579]
[1735634163285,3.0,3395.1,3394.6,0.55]
[1735634163859,2.94543,3395.1,3394.6,0.55]
[1735634164465,3.321053,3395.1,3394.6,0.55]
[1735634164631,0.375623,3395.1,3394.3,0.1703841]
[1735634164770,2.94577,3394.7,3394.3,0.1703841]
[1735634165234,0.375623,3395.1,3394.3,0.1703841]
[1735634165515,2.94565,3394.9,3394.3,0.1703841]
[1735634165669,0.375623,3395.1,3394.3,0.1703841]
[1735634165670,2.94586,3394.6,3394.3,0.1703841]
[1735634165870,0.375623,3395.1,3394.3,0.1703841]
[1735634166071,2.94572,3394.8,3394.3,0.1703841]
[1735634166270,0.375623,3395.1,3394.3,0.1703841]
[1735634166544,0.8108,3395.3,3394.3,0.1703841]
[1735634166676,3.0,3395.0,3394.3,0.1703841]
[1735634166878,3.0,3394.8,3394.3,0.1703841]
[1735634167126,2.94602,3394.4,3394.3,0.1703841]
[1735634167420,3.75682,3394.4,3394.3,0.1703841]
[1735634167618,4.727078,3394.4,3394.3,0.1703841]
[1735634168729,3.916278,3394.4,3394.3,0.1703841]
[1735634169047,0.8108,3394.8,3394.3,0.1703841]
[1735634169338,2.94602,3394.4,3394.3,0.1703841]
[1735634169628,3.75682,3394.4,3394.3,0.1703841]
[1735634169807,3.75682,3394.4,3394.3,4.1e-06]
[1735634170007,6.75726,3393.9,3393.8,0.00294]
[1735634170323,6.75726,3393.9,3392.5,3.40720665]
[1735634170324,1.781152,3393.9,3392.5,3.40720665]
[1735634170619,3.0,3393.5,3392.5,3.40720665]
[1735634171026,3.0,3393.5,3391.8,8.71885914]
[1735634171027,0.8108,3393.9,3393.2,0.55]
[1735634171183,0.8108,3394.4,3393.3,0.39572067]
[1735634171519,2.94692,3393.4,3392.7,3.40720665]
[1735634171721,3.0,3394.3,3392.7,3.40720665]
[1735634172025,2.94693,3393.4,3392.7,3.40720665]
[1735634172227,3.0,3394.3,3392.8,0.55]
[1735634172430,3.0,3393.6,3392.8,0.55]
[1735634172727,2.94663,3393.8,3393.1,3.40720665]
[1735634172923,3.0,3394.1,3393.1,3.40720665]
[1735634173130,2.9469,3393.4,3392.7,3.40720665]
[1735634173326,2.947,3393.3,3392.7,3.40720665]
[1735634173630,0.8108,3394.4,3392.7,3.40720665]
[1735634173841,2.94707,3393.2,3392.7,3.40720665]
[1735634174180,2.94695,3393.4,3392.3,3.40720665]
[1735634174380,2.94672,3393.6,3392.3,3.40720665]
[1735634174722,2.94726,3393.0,3392.4,0.02931533]
[1735634175101,2.94707,3393.2,3392.3,3.40720665]
[1735634175412,3.0,3393.3,3392.4,0.02931533]
[1735634175615,0.294707,3393.2,3392.4,0.57931533]
[1735634175835,3.0,3393.3,3392.4,0.57931533]
[1735634176017,3.0,3393.5,3392.4,0.55]
[1735634176218,0.8108,3393.7,3392.5,0.02931533]
[1735634176544,3.8108,3393.7,3392.4,0.55]
[1735634176694,2.94634,3394.1,3392.8,0.55]
[1735634176695,0.8222,3394.1,3392.8,0.55]
[1735634176894,0.8222,3394.1,3393.1,3.40720665]
[1735634176895,0.1497867,3394.0,3393.1,3.40720665]
[1735634177226,2.94657,3393.8,3393.1,3.40720665]
[1735634177398,2.94664,3393.7,3393.2,0.03053282]
[1735634177601,3.0,3393.6,3393.2,0.03053282]
[1735634177837,3.0961967,3394.0,3393.2,0.58053282]
[1735634178136,2.94646,3393.9,3393.2,0.58053282]
[1735634178505,0.39184467,3393.9,3393.2,0.03053282]
[1735634178693,3.39184467,3393.9,3393.2,0.03053282]
[1735634178895,3.0,3393.3,3393.2,0.03053282]
[1735634179234,2.94708,3393.2,3392.7,3.40720665]
[1735634179530,3.0,3393.3,3392.7,3.40720665]
[1735634179736,2.9472,3393.1,3392.7,3.40720665]
[1735634180030,0.39184467,3393.9,3392.7,3.40720665]
[1735634180232,1.18889236,3395.2,3393.1,3.40720665]
[1735634180233,0.8222,3394.2,3393.1,3.40720665]
[1735634180529,3.0,3393.6,3393.1,3.40720665]
[1735634180841,0.8222,3394.2,3393.2,0.55]
[1735634181133,3.0,3393.8,3393.2,0.55]
[1735634181342,3.0,3394.0,3393.5,3.40720665]
[1735634181632,0.8222,3395.4,3393.6,0.55]
[1735634181835,2.94542,3395.1,3394.0,3.40720665]
[1735634182179,0.8222,3395.4,3394.5,0.55]
[1735634182289,0.8222,3395.8,3394.5,0.55]
[1735634182630,2.94479,3395.9,3394.9,0.55]
[1735634182834,3.42387749,3395.8,3394.9,0.55]
[1735634183133,0.47906749,3395.8,3394.9,0.55]
[1735634183333,1.8458849,3396.0,3395.3,0.55]
[1735634183541,3.76637,3396.6,3395.3,0.55]
[1735634183836,2.94456,3396.1,3395.3,0.55]
[1735634183981,0.32782968,3396.5,3394.8,3.40720665]
[1735634184185,0.8222,3395.7,3394.4,3.40720665]
[1735634184432,3.0,3395.4,3394.9,0.0283277]
[1735634184640,2.9455,3395.0,3394.5,0.55]
[1735634184794,3.0,3395.1,3394.5,0.55]
[1735634184985,2.94543,3395.1,3394.6,0.0283277]
[1735634185186,0.594515,3395.3,3394.6,0.0283277]
[1735634185390,2.94555,3395.0,3394.4,3.40720665]
[1735634185590,3.0,3394.9,3394.4,3.40720665]
[1735634186043,0.8222,3395.7,3394.9,0.55]
[1735634186336,2.94521,3395.4,3394.8,3.40720665]
[1735634186650,3.0,3395.5,3394.8,3.40720665]
[1735634186813,2.94475,3395.9,3395.3,0.55]
[1735634186997,5.9740325,3397.1,3395.3,0.55]
[1735634187346,2.94463,3396.1,3395.3,0.55]
[1735634187506,0.8222,3396.5,3395.3,0.55]
[1735634187712,3.0,3396.4,3395.7,0.55]
[1735634187912,0.59442,3396.3,3395.7,0.55]
[1735634188294,2.94429,3396.4,3395.8,0.02730067]
[1735634188845,2.94439,3396.3,3395.8,0.02730067]
[1735634189343,2.94394,3396.8,3395.8,0.02730067]
[1735634189344,3.0,3396.5,3395.8,0.02730067]
[1735634189548,0.7691,3396.3,3395.8,0.02730067]
[1735634189805,2.94521,3395.4,3394.7,3.40720665]
[1735634190488,3.0,3395.4,3394.7,3.40720665]
[1735634190861,3.0,3395.6,3395.1,3.40720665]
[1735634191058,0.7691,3396.3,3395.5,3.40720665]
[1735634191382,0.3,3396.4,3395.6,0.55]
[1735634191580,2.94448,3396.2,3395.6,0.55]
[1735634191899,2.94439,3396.3,3395.6,0.55]
[1735634192056,3.0,3396.1,3395.6,0.55]
[1735634192260,0.594447,3396.0,3395.5,3.40720665]
[1735634192512,3.0,3395.9,3395.5,3.40720665]
[1735634193012,2.94477,3395.9,3395.5,3.40720665]
[1735634193219,2.94484,3395.8,3395.1,3.95720665]
[1735634193531,3.0,3396.0,3395.1,3.95720665]
[1735634193665,3.0,3396.3,3395.1,3.95720665]
[1735634193865,0.624429,3396.2,3395.1,3.40720665]
[1735634194099,2.94485,3395.8,3395.1,3.40720665]
[1735634194296,2.94465,3396.0,3395.2,0.55]
[1735634194516,3.0,3395.9,3395.2,0.55]
[1735634195010,2.94475,3395.9,3395.2,0.55]
[1735634195311,0.294475,3395.8,3395.2,0.55]
[1735634196879,3.239285,3395.8,3395.2,0.55]
[1735634197396,0.294475,3395.8,3395.2,0.55]
[1735634198178,0.294475,3395.8,3395.5,3.40720665]
[1735634198364,0.624429,3396.2,3395.6,0.55]
[1735634198571,0.3,3396.4,3395.6,0.55]
[1735634198770,3.3,3396.4,3395.6,0.55]
[1735634199034,3.24433,3396.4,3395.6,0.55]
[1735634199316,3.0,3396.2,3395.6,0.55]
[1735634200193,2.94455,3396.2,3395.5,3.40720665]
[1735634200518,0.324455,3396.1,3395.6,0.55]
[1735634201211,0.324455,3396.1,3395.5,3.40720665]
[1735634201212,3.0,3395.9,3395.5,3.40720665]
[1735634201396,2.94474,3395.9,3395.5,3.40720665]
[1735634201767,2.94435,3396.4,3395.5,3.40720665]
[1735634202016,2.94457,3396.1,3395.5,3.40720665]
[1735634202186,5.9441,3396.7,3395.6,0.55]
[1735634202382,3.0,3396.2,3395.6,0.55]
[1735634202611,2.94449,3396.2,3395.6,0.55]
[1735634202913,3.0,3396.1,3395.6,0.55]
[1735634203296,3.0,3396.4,3395.5,3.40720665]
[1735634203511,3.0,3395.9,3395.5,3.40720665]
[1735634203871,2.94482,3395.8,3395.5,3.40720665]
[1735634205014,2.9449,3395.7,3395.5,3.40720665]
[1735634205412,2.9449,3395.7,3394.3,2.9461]
[1735634205413,2.9449,3395.7,3395.1,0.55]
[1735634205729,2.9449,3395.7,3395.0,3.40720665]
[1735634205730,3.0,3395.9,3395.0,3.40720665]
[1735634205932,2.94542,3395.1,3395.0,3.40720665]
[1735634206278,2.94542,3395.1,3394.5,3.40720665]
[1735634206799,0.594464,3395.8,3394.5,3.40720665]
[1735634207119,2.94536,3395.2,3394.5,3.40720665]
[1735634207285,2.94536,3395.2,3394.6,0.55]
[1735634208017,2.9449,3395.7,3395.0,0.55]
[1735634208238,2.94486,3395.8,3395.4,3.40720665]
[1735634208410,1.8458849,3396.0,3395.5,0.55]
[1735634208935,3.0,3396.0,3395.5,0.55]
[1735634209430,5.94464,3396.0,3395.5,0.55]
[1735634209987,5.94464,3396.0,3394.8,8.71885914]
[1735634209988,0.594464,3396.0,3394.8,8.71885914]
[1735634210187,2.94546,3395.1,3394.8,8.71885914]
[1735634210425,2.94546,3395.1,3394.5,3.40720665]
[1735634210744,0.7919,3395.9,3394.9,3.40720665]
[1735634211289,3.7919,3395.9,3394.9,3.40720665]
[1735634211538,0.7331054,3395.8,3394.9,3.40720665]
[1735634211892,3.0,3395.7,3394.9,3.40720665]
[1735634212088,3.0,3395.7,3395.0,0.55]
[1735634212292,2.94432,3396.4,3395.4,0.55]
[1735634212523,2.94439,3396.3,3395.4,0.55]
[1735634212786,2.94474,3395.9,3395.4,0.55]
[1735634213191,5.94486,3395.8,3394.8,6.5]
[1735634213419,2.94491,3395.7,3394.9,3.40720665]
[1735634213809,2.94491,3395.7,3395.0,0.55]
[1735634214407,3.84069239,3396.4,3395.4,0.55]
[1735634214607,2.94455,3396.2,3395.4,0.55]
[1735634214836,0.75768624,3396.3,3395.4,0.55]
[1735634214837,3.0,3396.0,3395.4,0.55]
[1735634215006,3.0,3395.8,3395.4,0.55]
[1735634215406,3.0,3396.0,3395.4,0.55]
[1735634215593,2.94464,3396.0,3395.4,0.55]
[1735634215795,3.0,3395.8,3395.4,0.55]
[1735634216123,2.94481,3395.8,3395.4,0.55]
[1735634216330,0.294464,3395.9,3395.4,0.55]
[1735634216524,3.75768624,3396.3,3395.4,0.55]
[1735634216840,3.0,3395.9,3395.4,0.55]
[1735634219128,2.94474,3395.9,3395.4,0.55]
[1735634219659,6.70212624,3396.3,3395.4,0.55]
[1735634219795,2.94477,3395.9,3395.4,0.55]
[1735634219997,0.294477,3395.8,3395.4,0.55]
[1735634220440,3.0,3395.6,3394.7,8.71885914]
[1735634220743,2.94518,3395.4,3394.7,8.71885914]
[1735634221161,2.94518,3395.4,3394.8,0.55]
[1735634221362,0.594518,3395.3,3394.8,0.55]
[1735634221667,3.0,3395.6,3394.9,3.40720665]
[1735634221871,0.8238,3396.1,3395.4,0.55]
[1735634222165,2.94472,3395.9,3395.3,3.40720665]
[1735634222318,3.0,3395.5,3394.3,8.71885914]
[1735634222523,0.594504,3395.4,3394.8,3.40720665]
[1735634222746,0.594504,3395.4,3394.9,0.55]
[1735634222953,3.0,3395.7,3394.9,0.55]
[1735634223171,3.0,3395.5,3394.9,0.55]
[1735634223345,3.0,3395.5,3394.8,3.40720665]
[1735634223346,2.94517,3395.4,3394.8,3.40720665]
[1735634223852,5.43257136,3395.8,3394.8,3.40720665]
[1735634224052,2.43257136,3395.7,3394.9,0.55]
[1735634224367,6.57332675,3395.7,3395.3,0.55]
[1735634224755,3.0,3395.6,3394.7,3.95720665]
[1735634225142,1.14075539,3395.7,3394.7,3.95720665]
[1735634225453,2.94516,3395.4,3394.7,3.40720665]
[1735634225769,5.37722136,3396.0,3395.1,3.40720665]
[1735634226071,5.43257136,3395.9,3395.2,0.55]
[1735634226243,2.94527,3395.3,3394.7,3.40720665]
[1735634226567,0.294527,3395.2,3394.7,3.40720665]
[1735634227030,2.94552,3395.0,3394.3,3.40720665]
[1735634227230,6.76896,3395.4,3394.3,3.40720665]
[1735634227231,3.0,3394.8,3394.3,3.40720665]
[1735634227946,3.0,3394.8,3394.4,0.55]
[1735634228145,2.94524,3395.3,3394.3,3.40720665]
[1735634228146,3.0,3395.2,3394.3,3.40720665]
[1735634228458,3.0,3395.2,3393.9,8.71885914]
[1735634228459,0.8238,3394.5,3393.9,2.85351596]
[1735634228662,3.0,3394.1,3393.6,2.85351596]
[1735634229674,2.43257136,3394.1,3393.9,2.85351596]
[1735634230342,2.43257136,3394.1,3393.9,0.55]
[1735634230840,2.43257136,3394.1,3393.9,9.26885914]
[1735634231042,2.43257136,3394.2,3393.9,10.83162541]
[1735634231287,2.43257136,3394.2,3394.1,3.96222358]
[1735634232014,2.43257136,3394.8,3394.3,11.66495914]
[1735634232138,2.43257136,3394.8,3394.7,3.96222358]
[1735634232801,3.636327,3395.3,3394.7,3.96222358]
[1735634232802,5.37782136,3395.3,3394.8,0.55]
[1735634233083,3.78614939,3395.2,3394.7,3.41222358]
[1735634233437,3.84080939,3395.2,3394.8,0.55]
[1735634233693,2.43257136,3395.1,3394.8,0.55]
[1735634234252,2.43257136,3395.3,3394.8,0.55]
[1735634235231,5.43257136,3395.6,3394.8,0.55]
[1735634235416,5.43257136,3395.6,3395.2,0.55]
[1735634236187,2.43257136,3395.6,3395.2,0.55]
[1735634236687,2.43257136,3395.6,3395.2,9.26885914]
[1735634236893,2.43257136,3395.6,3395.5,3.96222358]
[1735634237840,2.43257136,3395.8,3395.6,0.55]
[1735634238632,2.94481,3395.8,3395.1,3.41222358]
[1735634239228,5.43257136,3395.9,3395.2,0.55]
[1735634239422,2.43257136,3395.7,3395.2,0.55]
[1735634239657,3.27885575,3395.7,3395.2,0.55]
[1735634239845,2.43257136,3395.7,3395.5,3.41222358]
[1735634240245,2.43257136,3395.8,3395.5,3.41222358]
[1735634240858,2.43257136,3395.8,3395.6,0.55]
[1735634241008,2.43257136,3395.7,3395.6,0.55]
[1735634241789,5.43257136,3395.9,3395.6,0.55]
[1735634242715,2.43257136,3395.9,3395.6,0.55]
[1735634242915,2.43257136,3395.9,3395.6,0.94622236]
[1735634243549,2.43257136,3396.0,3395.6,0.55]
[1735634244523,2.43257136,3396.1,3395.7,3.41222358]
[1735634245328,2.43257136,3396.0,3395.7,3.41222358]
[1735634245684,2.43257136,3396.0,3395.8,0.55]
[1735634246183,2.94289,3398.1,3395.8,0.55]
[1735634246184,2.43257136,3396.3,3396.0,0.55]
[1735634246477,2.43257136,3396.3,3396.2,0.55]
[1735634247333,2.43257136,3396.3,3396.2,3.49446]
[1735634247533,2.43257136,3396.9,3396.2,3.49446]
[1735634247745,2.43257136,3396.9,3396.8,3.96222358]
[1735634248072,2.43257136,3396.9,3396.8,4.3271943]
[1735634248872,2.43257136,3397.6,3396.9,9.26885914]
[1735634249081,2.43257136,3397.6,3397.5,3.41222358]
[1735634250070,2.43257136,3398.1,3397.6,0.55]
[1735634250274,1.14054939,3398.0,3397.6,0.55]
[1735634251095,1.14054939,3398.0,3396.8,0.36497072]
[1735634251096,2.43257136,3398.1,3397.9,3.41222358]
[1735634251299,2.94259,3398.4,3397.9,3.41222358]
[1735634251716,3.21407136,3398.5,3396.8,0.36497072]
[1735634251717,2.43257136,3398.5,3398.4,0.55]
[1735634252201,2.43257136,3398.9,3398.5,8.71885914]
[1735634252354,2.43257136,3398.9,3398.8,3.41222358]
[1735634252554,2.43257136,3398.9,3398.8,3.96222358]
[1735634253259,2.97885575,3398.9,3398.8,3.41222358]
[1735634253455,2.43257136,3398.9,3398.8,3.96222358]
[1735634253667,0.7815,3399.6,3398.9,0.55]
[1735634254106,0.7815,3399.6,3399.3,0.55]
[1735634254311,3.76437,3399.9,3399.3,0.55]
[1735634254507,0.92272139,3399.8,3399.3,0.55]
[1735634254715,0.92272139,3399.8,3399.0,8.71885914]
[1735634255007,2.94188,3399.2,3399.0,8.71885914]
[1735634255223,2.94204,3399.0,3398.6,3.41222358]
[1735634256112,3.0,3399.0,3398.1,8.71885914]
[1735634256342,2.94272,3398.3,3398.1,8.71885914]
[1735634256772,0.8231,3398.4,3398.1,8.71885914]
[1735634256981,0.8231,3398.4,3396.9,8.71885914]
[1735634257282,4.1549222,3398.4,3397.2,3.41222358]
[1735634257474,2.94351,3397.3,3396.8,9.91222358]
[1735634257697,3.7664,3397.6,3396.8,9.91222358]
[1735634257859,0.8231,3397.6,3397.2,3.41222358]
[1735634258196,0.8231,3397.6,3396.3,8.71885914]
[1735634258197,2.94351,3397.3,3396.8,3.41222358]
[1735634258513,0.294351,3397.2,3396.8,3.41222358]
[1735634259176,2.94314,3397.8,3395.8,0.39622236]
[1735634259177,2.94307,3397.9,3396.9,0.55]
[1735634259388,0.8231,3398.3,3397.4,3.41222358]
[1735634259613,0.8231,3397.9,3397.0,3.41222358]
[1735634259965,3.0,3397.7,3397.0,3.41222358]
[1735634260171,0.676609,3397.6,3397.0,3.41222358]
[1735634260511,2.94346,3397.4,3397.0,3.41222358]
[1735634260883,2.94363,3397.2,3397.0,3.41222358]
[1735634261085,2.94368,3397.1,3397.0,3.41222358]
[1735634261281,0.676609,3397.6,3397.0,3.41222358]
[1735634261503,3.3110709,3397.5,3397.0,3.41222358]
[1735634261832,3.0,3397.4,3397.0,3.41222358]
[1735634262538,0.8231,3397.9,3397.1,0.55]
[1735634262708,2.94274,3398.2,3397.5,0.55]
[1735634263028,0.8231,3398.3,3397.5,0.55]
[1735634263335,3.0,3397.9,3397.5,0.55]
[1735634263481,3.894291,3397.9,3397.5,0.55]
[1735634263677,3.894291,3397.9,3397.0,3.41222358]
[1735634263678,2.94316,3397.7,3397.0,3.41222358]
[1735634263877,3.8231,3397.8,3397.0,3.41222358]
[1735634264124,3.8231,3397.8,3397.1,0.55]
[1735634264311,0.8231,3397.8,3397.4,3.41222358]
[1735634264518,0.3766,3397.7,3397.4,3.41222358]
[1735634264901,2.94317,3397.7,3397.4,3.41222358]
[1735634265179,3.0,3397.6,3397.4,3.41222358]
[1735634265483,2.94285,3398.1,3397.4,3.41222358]
[1735634265687,2.94285,3398.1,3397.5,0.55]
[1735634266131,3.0,3397.8,3397.2,8.71885914]
[1735634266288,3.0,3397.5,3396.8,8.71885914]
[1735634266485,0.8128,3398.0,3396.3,6.5]
[1735634266721,2.94354,3397.3,3396.8,3.41222358]
[1735634266953,0.8128,3398.0,3397.2,3.41222358]
[1735634267089,3.0,3397.6,3397.2,3.41222358]
[1735634267438,3.537572,3397.6,3397.2,3.41222358]
[1735634267741,2.94325,3397.6,3397.2,3.41222358]
[1735634268036,3.8128,3398.0,3397.2,3.41222358]
[1735634268037,0.8128,3398.0,3397.2,3.41222358]
[1735634268183,2.94315,3397.8,3397.2,3.41222358]
[1735634268389,2.94315,3397.8,3397.3,0.55]
[1735634270151,3.0,3397.8,3397.3,0.55]
[1735634270309,0.8128,3398.0,3397.3,0.55]
[1735634270508,1.188359,3398.0,3397.3,0.55]
[1735634271232,2.9431,3397.8,3397.3,0.55]
[1735634271454,2.9429,3398.1,3397.6,3.41222358]
[1735634271735,0.8128,3398.4,3397.6,3.41222358]
[1735634271903,2.94283,3398.1,3397.6,3.41222358]
[1735634272112,2.94283,3398.1,3397.7,0.55]
[1735634272442,6.75501,3398.8,3398.0,3.41222358]
[1735634272593,2.9425,3398.5,3398.0,3.41222358]
[1735634273921,3.91202,3398.7,3398.1,0.55]
[1735634274131,2.94247,3398.5,3398.4,3.41222358]
[1735634274904,2.9424,3398.6,3398.4,3.41222358]
[1735634276450,2.94219,3398.9,3398.4,3.41222358]
[1735634276660,2.942,3399.1,3398.4,3.41222358]
[1735634276661,2.94238,3398.7,3398.4,3.41222358]
[1735634276870,3.0,3398.6,3398.4,3.41222358]
[1735634277165,2.94238,3398.7,3398.4,3.41222358]
[1735634277305,2.94203,3399.1,3398.5,0.55]
[1735634277511,2.94204,3399.0,3398.8,3.41222358]
[1735634277927,0.294204,3399.0,3398.8,3.41222358]
[1735634278127,2.94152,3399.6,3398.8,3.41222358]
[1735634278410,3.0,3399.6,3398.9,0.55]
[1735634278610,2.94188,3399.2,3398.9,0.55]
[1735634278853,3.0,3399.6,3398.9,0.55]
[1735634279039,2.94187,3399.2,3398.9,0.55]
[1735634279871,2.94169,3399.4,3398.9,0.55]
[1735634280162,3.911289,3399.4,3398.9,0.55]
[1735634280518,2.94169,3399.4,3398.9,0.55]
[1735634280718,0.8128,3399.7,3399.2,3.41222358]
[1735634280719,3.7543,3399.7,3399.2,3.41222358]
[1735634280952,3.0,3399.4,3399.2,3.41222358]
[1735634281150,2.94165,3399.5,3399.2,3.41222358]
[1735634281334,2.94138,3399.8,3399.3,0.55]
[1735634281861,2.94138,3399.8,3399.3,9.26885914]
[1735634282018,0.376728,3399.8,3399.3,8.71885914]
[1735634282217,2.94169,3399.4,3399.3,8.71885914]
[1735634282416,5.94169,3399.4,3399.3,8.71885914]
[1735634283661,3.0,3399.4,3399.3,8.71885914]
[1735634283862,5.94169,3399.4,3399.3,8.71885914]
[1735634284648,3.0,3399.3,3398.7,2.84550609]
[1735634284853,2.94242,3398.6,3398.3,2.84550609]
[1735634285746,2.94221,3398.8,3398.3,2.84550609]
[1735634285959,0.8259,3399.0,3398.7,2.84550609]
[1735634286123,2.94228,3398.8,3398.7,2.84550609]
[1735634286324,2.94233,3398.7,3398.4,3.40302551]
[1735634286669,0.8259,3399.0,3398.5,0.55]
[1735634286670,2.94207,3399.0,3398.5,0.55]
[1735634286841,2.94195,3399.2,3398.9,3.40302551]
[1735634287173,0.8259,3399.8,3398.9,3.40302551]
[1735634287470,2.94188,3399.2,3398.9,3.40302551]
[1735634287665,2.94169,3399.5,3398.9,3.40302551]
[1735634287873,2.43257136,3399.9,3399.1,8.71885914]
[1735634288169,3.0,3399.6,3399.4,0.55]
[1735634288372,0.54628439,3399.9,3399.1,8.71885914]
[1735634288576,0.8259,3399.8,3398.9,3.40302551]
[1735634288774,2.94204,3399.0,3398.9,3.40302551]
[1735634288948,2.94186,3399.3,3398.9,3.40302551]
[1735634289544,0.8259,3399.8,3399.0,0.55]
[1735634289745,2.94179,3399.3,3399.0,0.55]
[1735634290245,3.0,3399.5,3399.0,0.55]
[1735634290659,2.94134,3399.9,3399.4,0.55]
[1735634290975,2.94117,3400.0,3399.4,9.26885914]
[1735634291177,2.94117,3400.0,3399.7,3.40302551]
[1735634291364,3.0,3399.9,3399.7,3.40302551]
[1735634291943,0.8259,3400.5,3399.7,3.40302551]
[1735634292149,0.8259,3400.5,3399.7,12.12188465]
[1735634292377,2.941,3400.3,3400.1,3.40302551]
[1735634292856,2.94093,3400.3,3400.1,3.40302551]
[1735634293297,0.294093,3400.3,3399.6,3.40302551]
[1735634293464,2.94122,3400.0,3399.6,3.40302551]
[1735634294507,3.0,3400.0,3399.4,8.71885914]
[1735634294666,2.94177,3399.4,3398.8,12.12188465]
[1735634294868,2.94187,3399.2,3398.8,12.12188465]
[1735634295449,2.94197,3399.1,3398.8,12.12188465]
[1735634296936,2.94197,3399.1,3398.8,3.40302551]
[1735634297446,2.94158,3399.6,3398.8,3.40302551]
[1735634297666,0.671268,3399.5,3398.8,3.40302551]
[1735634297839,2.9419,3399.2,3398.8,3.40302551]
[1735634299437,2.9417,3399.4,3398.9,0.55]
[1735634299764,2.9418,3399.3,3398.9,0.55]
[1735634299966,2.9418,3399.3,3398.9,9.26885914]
[1735634300166,3.671268,3399.5,3398.9,9.26885914]
[1735634300389,2.9417,3399.4,3398.9,9.26885914]
[1735634300739,0.671268,3399.5,3399.2,3.40302551]
[1735634300922,2.43257136,3400.2,3399.3,9.26885914]
[1735634301125,2.43257136,3400.2,3399.6,3.40302551]
[1735634301317,2.43257136,3400.2,3400.0,3.40302551]
[1735634301767,2.94089,3400.4,3400.0,3.40302551]
[1735634302086,2.43257136,3400.7,3400.0,3.40302551]
[1735634302240,2.43257136,3400.7,3400.4,3.40302551]
[1735634302443,5.37314136,3400.7,3400.5,0.55]
[1735634302692,2.43257136,3400.7,3400.5,0.55]
[1735634303167,2.94031,3401.0,3400.7,0.55]
[1735634303375,2.43257136,3401.4,3400.6,8.71885914]
[1735634303538,2.94057,3400.7,3400.6,8.71885914]
[1735634304451,2.94037,3401.0,3400.6,8.71885914]
[1735634304653,1.21738739,3401.3,3400.6,8.71885914]
[1735634304839,5.93972,3401.7,3400.6,8.71885914]
[1735634304840,2.94057,3400.7,3400.6,8.71885914]
[1735634307000,2.94017,3401.2,3400.4,3.40302551]
[1735634307297,2.93998,3401.4,3400.9,3.40302551]
[1735634307901,3.0,3401.5,3400.9,3.40302551]
[1735634308280,2.94018,3401.2,3400.9,2.84221856]
[1735634309404,0.594018,3401.2,3400.9,2.84221856]
[1735634309571,2.94031,3401.0,3400.9,2.84221856]
[1735634310265,3.0,3401.2,3400.9,2.84221856]
[1735634310708,2.94021,3401.2,3400.9,2.84221856]
[1735634311128,0.7711,3401.9,3400.9,2.84221856]
[1735634311325,2.94023,3401.1,3400.9,2.84221856]
[1735634311513,3.37711,3401.8,3400.9,2.84221856]
[1735634311713,0.37711,3401.8,3400.9,2.84221856]
[1735634312043,2.94013,3401.3,3400.9,2.84221856]
[1735634312638,2.93988,3401.5,3401.2,2.84221856]
[1735634312941,0.7711,3401.9,3401.2,2.84221856]
[1735634313093,2.93999,3401.4,3401.2,2.84221856]
[1735634313293,2.94005,3401.3,3401.2,2.84221856]
[1735634313490,0.7711,3401.9,3400.9,11.5610777]
[1735634313696,2.94031,3401.0,3400.9,11.5610777]
[1735634317147,2.94086,3400.4,3400.3,8.71885914]
[1735634317443,2.94086,3400.4,3400.3,11.5610777]
[1735634318354,3.588042,3401.0,3400.3,11.5610777]
[1735634318355,0.588042,3401.0,3400.3,11.5610777]
[1735634318570,2.94051,3400.8,3400.6,2.84221856]
[1735634318726,2.94057,3400.7,3400.6,2.84221856]
[1735634319726,2.94038,3401.0,3400.6,2.84221856]
[1735634319932,5.94038,3401.0,3400.9,2.84221856]
[1735634320113,2.94038,3401.0,3400.9,2.84221856]
[1735634321216,3.0,3401.4,3400.9,11.5610777]
[1735634321411,2.93972,3401.7,3401.3,2.84221856]
[1735634321962,3.0,3401.6,3401.3,2.84221856]
[1735634322351,2.93972,3401.7,3401.3,2.84221856]
[1735634322547,2.43257136,3402.1,3401.6,2.84221856]
[1735634322748,2.9397,3401.7,3401.6,2.84221856]
[1735634323119,2.93987,3401.5,3401.4,8.71885914]
[1735634323467,3.54628439,3402.0,3401.4,8.71885914]
[1735634323675,3.0,3402.3,3401.4,8.71885914]
[1735634323827,3.0,3401.7,3401.4,8.71885914]
[1735634324028,2.93969,3401.8,3401.6,2.84221856]
[1735634324230,2.43257136,3402.5,3401.6,2.84221856]
[1735634324447,2.93938,3402.1,3402.0,2.84221856]
[1735634324660,2.93938,3402.1,3401.7,11.5610777]
[1735634324661,0.35514237,3402.1,3401.7,11.5610777]
[1735634324864,2.93962,3401.8,3401.7,11.5610777]
[1735634325248,5.93962,3401.8,3401.7,8.71885914]
[1735634325454,6.827524,3401.8,3401.7,8.71885914]
[1735634326275,2.94022,3401.2,3400.8,2.84221856]
[1735634326978,5.94022,3401.2,3400.8,2.84221856]
[1735634327166,2.94039,3400.9,3400.8,2.84221856]
[1735634327368,2.94039,3400.9,3400.6,8.71885914]
[1735634327877,2.9405,3400.8,3400.5,2.84221856]
[1735634328090,2.94065,3400.6,3400.5,2.84221856]
[1735634328404,2.94084,3400.4,3400.2,2.84221856]
[1735634328566,2.94091,3400.3,3400.2,2.84221856]
[1735634329064,2.94074,3400.5,3400.2,2.84221856]
[1735634329295,2.9407,3400.6,3400.2,2.84221856]
[1735634329481,2.94052,3400.8,3400.5,2.84221856]
[1735634329651,2.94057,3400.7,3400.5,2.84221856]
[1735634330392,2.94065,3400.6,3400.5,2.84221856]